Body Name,Body,Service Division,Expense Type,Date Paid,Transaction Ref,Invoice Amount,Supplier Name
Boston Borough Council,http://statistics.data.gov.uk/id/local-authority/32UB,Operations,Fuel and Oil,03/07/2023,30006722,"5,239.48 ",Fuelcard Services Ltd
Boston Borough Council,http://statistics.data.gov.uk/id/local-authority/32UB,AD Capital - Regulation,Subscriptions to Organisations and Other Bodies,04/07/2023,30006393,"5,000.00 ",Lincolnshire County Council
Boston Borough Council,http://statistics.data.gov.uk/id/local-authority/32UB,BTAC,Equipment Lease Payments (Less than 12 months),04/07/2023,30006532,930.00 ,Franks Marquees
Boston Borough Council,http://statistics.data.gov.uk/id/local-authority/32UB,Communities,Grants and Contributions to Outside Bodies - No Service Received,04/07/2023,30006494,"6,977.93 ",Willanna LTD T/A Andrew Wrisdale Building Contractors
Boston Borough Council,http://statistics.data.gov.uk/id/local-authority/32UB,Communities,Subscriptions to Organisations and Other Bodies,04/07/2023,30006393,"5,000.00 ",Lincolnshire County Council
Boston Borough Council,http://statistics.data.gov.uk/id/local-authority/32UB,"Democratic, Civic & Electoral Services",Rent Payments,04/07/2023,30006482,300.00 ,Swineshead Village Hall
Boston Borough Council,http://statistics.data.gov.uk/id/local-authority/32UB,Environmental Health,Grants and Contributions to Outside Bodies - No Service Received,04/07/2023,30006526,"1,479.17 ",Carr Funeral Service
Boston Borough Council,http://statistics.data.gov.uk/id/local-authority/32UB,Operations,Agency Staff,04/07/2023,30006486,425.10 ,Workforce (Boston) LTD
Boston Borough Council,http://statistics.data.gov.uk/id/local-authority/32UB,Planning,Professional Fees,04/07/2023,30006517,300.00 ,East Midlands Tree Surveys LTD
Boston Borough Council,http://statistics.data.gov.uk/id/local-authority/32UB,Property Services,Agency Staff,04/07/2023,30006486,425.10 ,Workforce (Boston) LTD
Boston Borough Council,http://statistics.data.gov.uk/id/local-authority/32UB,Information Technology,Telephone and Mobiles,05/07/2023,30006915,314.47 ,British Telecommunications Plc
Boston Borough Council,http://statistics.data.gov.uk/id/local-authority/32UB,BTAC,Performers and Entertainers Fees,06/07/2023,30006506,400.00 ,"""Personal Information Redacted"""
Boston Borough Council,http://statistics.data.gov.uk/id/local-authority/32UB,Property Services,Buildings Maintenance - Programmed,06/07/2023,30006441,680.00 ,SG Services (Boston) LTD
Boston Borough Council,http://statistics.data.gov.uk/id/local-authority/32UB,Property Services,Buildings Maintenance - Programmed,06/07/2023,30006473,"1,437.15 ",Cooleraid LTD
Boston Borough Council,http://statistics.data.gov.uk/id/local-authority/32UB,Property Services,Buildings Maintenance - Programmed,06/07/2023,30006474,445.00 ,A J Gillman Locksmith
Boston Borough Council,http://statistics.data.gov.uk/id/local-authority/32UB,Property Services,Buildings Maintenance - Programmed,06/07/2023,30006496,280.00 ,Lincolnshire Flooring Company (Contracts) LTD
Boston Borough Council,http://statistics.data.gov.uk/id/local-authority/32UB,Finance,Banking Charges,10/07/2023,30006827,493.98 ,King and Shaxson
Boston Borough Council,http://statistics.data.gov.uk/id/local-authority/32UB,Operations,Fuel and Oil,10/07/2023,30006829,"5,603.62 ",Fuelcard Services Ltd
Boston Borough Council,http://statistics.data.gov.uk/id/local-authority/32UB,Bereavement,Professional and Contractors Fees,11/07/2023,30006518,314.50 ,Sutterton Surgery - Dr Stephen Hughes
Boston Borough Council,http://statistics.data.gov.uk/id/local-authority/32UB,Bereavement,Professional and Contractors Fees,11/07/2023,30006519,"1,110.00 ","""Personal Information Redacted"""
Boston Borough Council,http://statistics.data.gov.uk/id/local-authority/32UB,BTAC,Equipment Lease Payments (Less than 12 months),11/07/2023,30006529,600.00 ,Blockfree Services LTD Lincs Loos
Boston Borough Council,http://statistics.data.gov.uk/id/local-authority/32UB,BTAC,Other Miscellaneous Expenses,11/07/2023,30006547,665.60 ,Singleton Event Services LTD
Boston Borough Council,http://statistics.data.gov.uk/id/local-authority/32UB,BTAC,Other Private Contractors,11/07/2023,30006527,"1,486.82 ",Logic Service Management LTD
Boston Borough Council,http://statistics.data.gov.uk/id/local-authority/32UB,BTAC,Performers and Entertainers Fees,11/07/2023,30006638,500.00 ,Boston Jive
Boston Borough Council,http://statistics.data.gov.uk/id/local-authority/32UB,Communities,Grants and Contributions to Outside Bodies - No Service Received,11/07/2023,30006366,"57,190.38 ",South Holland District Council
Boston Borough Council,http://statistics.data.gov.uk/id/local-authority/32UB,Communities,Grants and Contributions to Outside Bodies - No Service Received,11/07/2023,30006616,"4,801.00 ",Dolphin Mobility East Midlands LTD
Boston Borough Council,http://statistics.data.gov.uk/id/local-authority/32UB,Communities,Grants and Contributions to Outside Bodies - No Service Received,11/07/2023,30006665,"8,000.00 ",Lincolnshire Community Foundation
Boston Borough Council,http://statistics.data.gov.uk/id/local-authority/32UB,Communities,Purchase of Buildings,11/07/2023,30006686,"5,000.00 ",Ashwood Homes Ltd
Boston Borough Council,http://statistics.data.gov.uk/id/local-authority/32UB,Communities,Rent Payments,11/07/2023,30006674,660.00 ,Smart Move (Boston) LTD
Boston Borough Council,http://statistics.data.gov.uk/id/local-authority/32UB,Credit Control,Other Miscellaneous Expenses,11/07/2023,30006338,"1,400.48 ",Pay360 LTD
Boston Borough Council,http://statistics.data.gov.uk/id/local-authority/32UB,Economic Development,Professional and Contractors Fees,11/07/2023,30006666,800.00 ,South Holland District Council
Boston Borough Council,http://statistics.data.gov.uk/id/local-authority/32UB,Economic Development,Professional Fees,11/07/2023,30006696,643.80 ,Freeths LLP
Boston Borough Council,http://statistics.data.gov.uk/id/local-authority/32UB,Information Technology,Computer Software Licence Costs,11/07/2023,30006487,889.40 ,East Lindsey District Council
Boston Borough Council,http://statistics.data.gov.uk/id/local-authority/32UB,Leisure,Professional and Contractors Fees,11/07/2023,30006252,"3,600.00 ",Max Associates (Holdings) LTD
Boston Borough Council,http://statistics.data.gov.uk/id/local-authority/32UB,Leisure,Professional and Contractors Fees,11/07/2023,30006684,"5,400.00 ",Max Associates (Holdings) LTD
Boston Borough Council,http://statistics.data.gov.uk/id/local-authority/32UB,Operations,Agency Staff,11/07/2023,30006617,425.10 ,Workforce (Boston) LTD
Boston Borough Council,http://statistics.data.gov.uk/id/local-authority/32UB,Operations,Professional and Contractors Fees,11/07/2023,30006667,"10,632.00 ",South Holland District Council
Boston Borough Council,http://statistics.data.gov.uk/id/local-authority/32UB,Operations,Staff Recruitment,11/07/2023,30006530,150.00 ,Boston LGV Training LTD
Boston Borough Council,http://statistics.data.gov.uk/id/local-authority/32UB,Operations,Staff Training Expenses (Non-Payroll),11/07/2023,30006530,200.00 ,Boston LGV Training LTD
Boston Borough Council,http://statistics.data.gov.uk/id/local-authority/32UB,Operations,Vehicle Hire,11/07/2023,30006535,400.00 ,Phil Haines Coaches LTD
Boston Borough Council,http://statistics.data.gov.uk/id/local-authority/32UB,Property Services,Agency Staff,11/07/2023,30006339,600.21 ,Chase Services Group
Boston Borough Council,http://statistics.data.gov.uk/id/local-authority/32UB,Property Services,Agency Staff,11/07/2023,30006617,425.10 ,Workforce (Boston) LTD
Boston Borough Council,http://statistics.data.gov.uk/id/local-authority/32UB,Property Services,Buildings Maintenance - Programmed,11/07/2023,30006476,395.00 ,BDA Surveying LTD
Boston Borough Council,http://statistics.data.gov.uk/id/local-authority/32UB,Property Services,Buildings Maintenance - Programmed,11/07/2023,30006539,"1,977.75 ",Glen Farrow UK LTD
Boston Borough Council,http://statistics.data.gov.uk/id/local-authority/32UB,Property Services,Buildings Maintenance - Programmed,11/07/2023,30006543,248.86 ,GB Security Group
Boston Borough Council,http://statistics.data.gov.uk/id/local-authority/32UB,Property Services,Buildings Maintenance - Programmed,11/07/2023,30006544,"1,613.34 ",Glen Farrow UK LTD
Boston Borough Council,http://statistics.data.gov.uk/id/local-authority/32UB,Property Services,Buildings Maintenance - Programmed,11/07/2023,30006668,"1,446.10 ",Heritage Trust of Lincolnshire LTD
Boston Borough Council,http://statistics.data.gov.uk/id/local-authority/32UB,Property Services,Materials and Consumables,11/07/2023,30006500,622.00 ,Paperwork (UK) LTD
Boston Borough Council,http://statistics.data.gov.uk/id/local-authority/32UB,Property Services,Materials and Consumables,11/07/2023,30006515,217.35 ,Healthguard LTD
Boston Borough Council,http://statistics.data.gov.uk/id/local-authority/32UB,Strategic Economic Development Projects,Professional and Contractors Fees,11/07/2023,30006635,"2,610.00 ",Park Avenue Recruitment
Boston Borough Council,http://statistics.data.gov.uk/id/local-authority/32UB,Strategic Economic Development Projects,Professional and Contractors Fees,11/07/2023,30006636,"2,610.00 ",Park Avenue Recruitment
Boston Borough Council,http://statistics.data.gov.uk/id/local-authority/32UB,Townscape Heritage,Other Miscellaneous Expenses,11/07/2023,30006662,"1,937.12 ",Heritage Trust of Lincolnshire LTD
Boston Borough Council,http://statistics.data.gov.uk/id/local-authority/32UB,Business Transformation,Postages,13/07/2023,30006513,293.45 ,Royal Mail
Boston Borough Council,http://statistics.data.gov.uk/id/local-authority/32UB,Communities,Bed and Breakfast Accommodation (Homelessness Service),13/07/2023,30006208,"19,653.00 ",The Lord Grey Hotel t/a The Lord Grey Ltd
Boston Borough Council,http://statistics.data.gov.uk/id/local-authority/32UB,Communities,Grants and Contributions to Outside Bodies - No Service Received,13/07/2023,30006618,"6,157.36 ",Lincolnshire Bathrooms And Wetrooms
Boston Borough Council,http://statistics.data.gov.uk/id/local-authority/32UB,"Democratic, Civic & Electoral Services",Stationery,13/07/2023,30006699,378.00 ,Recognition Express
Boston Borough Council,http://statistics.data.gov.uk/id/local-authority/32UB,Economic Development,Professional Fees,13/07/2023,30006455,419.30 ,Freeths LLP
Boston Borough Council,http://statistics.data.gov.uk/id/local-authority/32UB,Finance,Professional and Contractors Fees,13/07/2023,30006430,"3,000.00 ",Link Treasury Services LTD
Boston Borough Council,http://statistics.data.gov.uk/id/local-authority/32UB,Finance,Public Sector Partnership Services,13/07/2023,30006613,"247,830.00 ",Public Sector Partnership Services LTD
Boston Borough Council,http://statistics.data.gov.uk/id/local-authority/32UB,Operations,Agency Staff,13/07/2023,30006605,"6,212.25 ",Comensura LTD
Boston Borough Council,http://statistics.data.gov.uk/id/local-authority/32UB,Operations,Maintenance,13/07/2023,30005970,225.23 ,Specialist Fleet Services LTD
Boston Borough Council,http://statistics.data.gov.uk/id/local-authority/32UB,Operations,Maintenance,13/07/2023,30005972,310.25 ,Specialist Fleet Services LTD
Boston Borough Council,http://statistics.data.gov.uk/id/local-authority/32UB,Operations,Maintenance,13/07/2023,30005975,296.31 ,Specialist Fleet Services LTD
Boston Borough Council,http://statistics.data.gov.uk/id/local-authority/32UB,Operations,Staff Training Expenses (Non-Payroll),13/07/2023,30006687,"3,370.00 ",Boston LGV Training LTD
Boston Borough Council,http://statistics.data.gov.uk/id/local-authority/32UB,Operations,Vehicle Hire,13/07/2023,30006623,960.00 ,Phil Haines Coaches LTD
Boston Borough Council,http://statistics.data.gov.uk/id/local-authority/32UB,Operations,Vehicle Hire,13/07/2023,30006625,680.00 ,Phil Haines Coaches LTD
Boston Borough Council,http://statistics.data.gov.uk/id/local-authority/32UB,Operations,Vehicle Hire,13/07/2023,30006627,680.00 ,Phil Haines Coaches LTD
Boston Borough Council,http://statistics.data.gov.uk/id/local-authority/32UB,Operations,Fuel and Oil,17/07/2023,30007054,"5,895.84 ",Fuelcard Services Ltd
Boston Borough Council,http://statistics.data.gov.uk/id/local-authority/32UB,BTAC,Equipment Lease Payments (Less than 12 months),18/07/2023,30006749,"3,680.00 ",Peachy Events Services LTD
Boston Borough Council,http://statistics.data.gov.uk/id/local-authority/32UB,Communities,Bed and Breakfast Accommodation (Homelessness Service),18/07/2023,30006807,448.00 ,AA Properties Boston LTD T/A Tunnard House
Boston Borough Council,http://statistics.data.gov.uk/id/local-authority/32UB,Communities,Grants and Contributions to Outside Bodies - No Service Received,18/07/2023,30006781,"2,300.00 ",Dolphin Mobility East Midlands LTD
Boston Borough Council,http://statistics.data.gov.uk/id/local-authority/32UB,Communities,Grants and Contributions to Outside Bodies - No Service Received,18/07/2023,30006782,"6,525.25 ",Belton Construction
Boston Borough Council,http://statistics.data.gov.uk/id/local-authority/32UB,Communities,Grants and Contributions to Outside Bodies - No Service Received,18/07/2023,30006783,"4,735.00 ",Obam Lift Services LTD
Boston Borough Council,http://statistics.data.gov.uk/id/local-authority/32UB,Communities,Grants and Contributions to Outside Bodies - No Service Received,18/07/2023,30006825,"5,770.66 ",Sibjon Builders
Boston Borough Council,http://statistics.data.gov.uk/id/local-authority/32UB,Communities,Rent Payments,18/07/2023,30006826,540.00 ,Smart Move (Boston) LTD
Boston Borough Council,http://statistics.data.gov.uk/id/local-authority/32UB,Economic Development,Professional Fees,18/07/2023,30006748,298.80 ,Singleton Event Services LTD
Boston Borough Council,http://statistics.data.gov.uk/id/local-authority/32UB,Environmental Health,Professional and Contractors Fees,18/07/2023,30006800,"1,120.83 ",Pestinator UK LTD
Boston Borough Council,http://statistics.data.gov.uk/id/local-authority/32UB,Information Technology,Professional and Contractors Fees,18/07/2023,30006685,325.00 ,Nottingham City Council
Boston Borough Council,http://statistics.data.gov.uk/id/local-authority/32UB,Land Charges & Licencing,Professional and Contractors Fees,18/07/2023,30006520,"2,367.45 ",Lincolnshire County Council
Boston Borough Council,http://statistics.data.gov.uk/id/local-authority/32UB,Land Charges & Licencing,Professional and Contractors Fees,18/07/2023,30007045,"1,520.00 ",Disclosure and Barring Service
Boston Borough Council,http://statistics.data.gov.uk/id/local-authority/32UB,Leisure,Insurance Excess (non transport),18/07/2023,30006673,"5,723.00 ",Ringrose Law
Boston Borough Council,http://statistics.data.gov.uk/id/local-authority/32UB,Leisure,Materials and Consumables,18/07/2023,30006365,498.00 ,Univar Solutions BV
Boston Borough Council,http://statistics.data.gov.uk/id/local-authority/32UB,Operations,Maintenance,18/07/2023,30006285,358.59 ,Specialist Fleet Services LTD
Boston Borough Council,http://statistics.data.gov.uk/id/local-authority/32UB,Operations,Materials and Consumables,18/07/2023,30006439,251.67 ,Zoro UK Limited
Boston Borough Council,http://statistics.data.gov.uk/id/local-authority/32UB,Operations,Other Private Contractors,18/07/2023,30006820,240.00 ,SG Services (Boston) LTD
Boston Borough Council,http://statistics.data.gov.uk/id/local-authority/32UB,Operations,Other Private Contractors,18/07/2023,30006821,240.00 ,SG Services (Boston) LTD
Boston Borough Council,http://statistics.data.gov.uk/id/local-authority/32UB,Operations,Other Private Contractors,18/07/2023,30006823,300.00 ,SG Services (Boston) LTD
Boston Borough Council,http://statistics.data.gov.uk/id/local-authority/32UB,Operations,Other Private Contractors,18/07/2023,30006845,350.00 ,SG Services (Boston) LTD
Boston Borough Council,http://statistics.data.gov.uk/id/local-authority/32UB,Operations,Other Private Contractors,18/07/2023,30006846,290.00 ,SG Services (Boston) LTD
Boston Borough Council,http://statistics.data.gov.uk/id/local-authority/32UB,Operations,Vehicle Hire,18/07/2023,30006536,500.00 ,Phil Haines Coaches LTD
Boston Borough Council,http://statistics.data.gov.uk/id/local-authority/32UB,Operations,Vehicle Hire,18/07/2023,30006538,850.00 ,Phil Haines Coaches LTD
Boston Borough Council,http://statistics.data.gov.uk/id/local-authority/32UB,Operations,Vehicle Hire,18/07/2023,30006604,"2,200.00 ",SFS t/a Collett Transport Services
Boston Borough Council,http://statistics.data.gov.uk/id/local-authority/32UB,Operations,Vehicle Hire,18/07/2023,30006624,"1,200.00 ",Phil Haines Coaches LTD
Boston Borough Council,http://statistics.data.gov.uk/id/local-authority/32UB,Operations,Vehicle Hire,18/07/2023,30006626,850.00 ,Phil Haines Coaches LTD
Boston Borough Council,http://statistics.data.gov.uk/id/local-authority/32UB,Property Services,Buildings Maintenance - Programmed,18/07/2023,30006726,"1,350.00 ",Eon UK Energy Services
Boston Borough Council,http://statistics.data.gov.uk/id/local-authority/32UB,Property Services,Electricity,18/07/2023,30006274,610.38 ,E-On Next
Boston Borough Council,http://statistics.data.gov.uk/id/local-authority/32UB,Property Services,Works to Buildings (Main Contractor),18/07/2023,30006488,"41,640.00 ",Rise Adaptations Ltd
Boston Borough Council,http://statistics.data.gov.uk/id/local-authority/32UB,Property Services,Works to Buildings (Main Contractor),18/07/2023,30006489,"1,200.00 ",Rise Adaptations Ltd
Boston Borough Council,http://statistics.data.gov.uk/id/local-authority/32UB,Property Services,Works to Buildings (Main Contractor),18/07/2023,30006812,"41,640.00 ",Rise Adaptations Ltd
Boston Borough Council,http://statistics.data.gov.uk/id/local-authority/32UB,Property Services,Works to Buildings (Main Contractor),18/07/2023,30006813,"1,200.00 ",Rise Adaptations Ltd
Boston Borough Council,http://statistics.data.gov.uk/id/local-authority/32UB,Property Services,Works to Buildings (Main Contractor),18/07/2023,30006814,"6,940.00 ",Rise Adaptations Ltd
Boston Borough Council,http://statistics.data.gov.uk/id/local-authority/32UB,Property Services,Works to Buildings (Main Contractor),18/07/2023,30006815,"6,940.00 ",Rise Adaptations Ltd
Boston Borough Council,http://statistics.data.gov.uk/id/local-authority/32UB,Strategic Economic Development Projects,Professional and Contractors Fees,18/07/2023,30006795,"2,479.50 ",Park Avenue Recruitment
Boston Borough Council,http://statistics.data.gov.uk/id/local-authority/32UB,Town Centre,Electricity,18/07/2023,30006274,610.38 ,E-On Next
Boston Borough Council,http://statistics.data.gov.uk/id/local-authority/32UB,Town Centre,Other Miscellaneous Expenses,18/07/2023,30006802,"1,840.00 ",SG Services (Boston) LTD
Boston Borough Council,http://statistics.data.gov.uk/id/local-authority/32UB,Grant Payments,Business Rates Tariff,19/07/2023,30007042,"472,213.00 ",Lincolnshire County Council
Boston Borough Council,http://statistics.data.gov.uk/id/local-authority/32UB,Grant Payments,Non-Ringfenced Government Grants - S31 Grant,19/07/2023,30007041,"1,243,788.00 ",Department for levelling Up Housing & Communities
Boston Borough Council,http://statistics.data.gov.uk/id/local-authority/32UB,Communities,Grants and Contributions to Outside Bodies - No Service Received,20/07/2023,30006790,"16,250.00 ",Citizens Advice Mid Lincolnshire
Boston Borough Council,http://statistics.data.gov.uk/id/local-authority/32UB,Communities,Rent Payments,20/07/2023,30006891,"1,105.00 ",The Lord Grey Hotel t/a The Lord Grey Ltd
Boston Borough Council,http://statistics.data.gov.uk/id/local-authority/32UB,"Democratic, Civic & Electoral Services",Other Miscellaneous Expenses,20/07/2023,30006511,484.00 ,G K Beaulah & Co Ltd
Boston Borough Council,http://statistics.data.gov.uk/id/local-authority/32UB,Finance,Banking Charges,20/07/2023,30007046,735.55 ,Bottomline
Boston Borough Council,http://statistics.data.gov.uk/id/local-authority/32UB,Leisure,Gas,20/07/2023,30006495,"1,725.00 ",SDL Biomass LTD
Boston Borough Council,http://statistics.data.gov.uk/id/local-authority/32UB,Leisure,Professional and Contractors Fees,20/07/2023,30006755,"3,680.50 ",Sharpe Pritchard LLP
Boston Borough Council,http://statistics.data.gov.uk/id/local-authority/32UB,Leisure,Purchase Of Goods For Resale,20/07/2023,30006660,344.70 ,JP Lennard LTD
Boston Borough Council,http://statistics.data.gov.uk/id/local-authority/32UB,Operations,Agency Staff,20/07/2023,30006774,"5,389.38 ",Comensura LTD
Boston Borough Council,http://statistics.data.gov.uk/id/local-authority/32UB,Operations,Maintenance,20/07/2023,30006454,251.50 ,Specialist Fleet Services LTD
Boston Borough Council,http://statistics.data.gov.uk/id/local-authority/32UB,Operations,Materials and Consumables,20/07/2023,30006868,320.00 ,Healthguard LTD
Boston Borough Council,http://statistics.data.gov.uk/id/local-authority/32UB,Operations,Other Private Contractors,20/07/2023,30006822,240.00 ,SG Services (Boston) LTD
Boston Borough Council,http://statistics.data.gov.uk/id/local-authority/32UB,Operations,Other Private Contractors,20/07/2023,30006850,240.00 ,SG Services (Boston) LTD
Boston Borough Council,http://statistics.data.gov.uk/id/local-authority/32UB,Operations,Other Private Contractors,20/07/2023,30006851,240.00 ,SG Services (Boston) LTD
Boston Borough Council,http://statistics.data.gov.uk/id/local-authority/32UB,Operations,Other Private Contractors,20/07/2023,30006855,240.00 ,SG Services (Boston) LTD
Boston Borough Council,http://statistics.data.gov.uk/id/local-authority/32UB,Operations,Other Private Contractors,20/07/2023,30006856,240.00 ,SG Services (Boston) LTD
Boston Borough Council,http://statistics.data.gov.uk/id/local-authority/32UB,Operations,Other Private Contractors,20/07/2023,30006857,240.00 ,SG Services (Boston) LTD
Boston Borough Council,http://statistics.data.gov.uk/id/local-authority/32UB,Operations,Other Private Contractors,20/07/2023,30006858,240.00 ,SG Services (Boston) LTD
Boston Borough Council,http://statistics.data.gov.uk/id/local-authority/32UB,Operations,Other Private Contractors,20/07/2023,30006859,310.00 ,SG Services (Boston) LTD
Boston Borough Council,http://statistics.data.gov.uk/id/local-authority/32UB,Operations,Other Private Contractors,20/07/2023,30006860,220.00 ,SG Services (Boston) LTD
Boston Borough Council,http://statistics.data.gov.uk/id/local-authority/32UB,Operations,Other Private Contractors,20/07/2023,30006861,320.00 ,SG Services (Boston) LTD
Boston Borough Council,http://statistics.data.gov.uk/id/local-authority/32UB,Strategic Economic Development Projects,Professional and Contractors Fees,20/07/2023,30006866,"1,100.00 ",The Engaging People Company
Boston Borough Council,http://statistics.data.gov.uk/id/local-authority/32UB,Operations,Fuel and Oil,24/07/2023,30007053,"5,556.58 ",Fuelcard Services Ltd
Boston Borough Council,http://statistics.data.gov.uk/id/local-authority/32UB,Bereavement,Internet Broadband Payments,25/07/2023,30006603,52.43 ,Multidata LTD
Boston Borough Council,http://statistics.data.gov.uk/id/local-authority/32UB,Bereavement,Purchase Of Goods For Resale,25/07/2023,30006525,239.00 ,The Yaboo Co LTD (Wesley Media)
Boston Borough Council,http://statistics.data.gov.uk/id/local-authority/32UB,BTAC,Advertising - Events,25/07/2023,30006677,341.34 ,Bauer Radio LTD
Boston Borough Council,http://statistics.data.gov.uk/id/local-authority/32UB,BTAC,Performers and Entertainers Fees,25/07/2023,30006762,"1,000.00 ","""Personal Information Redacted"""
Boston Borough Council,http://statistics.data.gov.uk/id/local-authority/32UB,BTAC,Performers and Entertainers Fees,25/07/2023,30006789,"1,500.00 ","""Personal Information Redacted"""
Boston Borough Council,http://statistics.data.gov.uk/id/local-authority/32UB,Business Transformation,Postages,25/07/2023,30006906,341.71 ,Royal Mail
Boston Borough Council,http://statistics.data.gov.uk/id/local-authority/32UB,Communities,Bed and Breakfast Accommodation (Homelessness Service),25/07/2023,30006955,260.00 ,The Lord Grey Hotel t/a The Lord Grey Ltd
Boston Borough Council,http://statistics.data.gov.uk/id/local-authority/32UB,Communities,Bed and Breakfast Accommodation (Homelessness Service),25/07/2023,30006956,875.00 ,The Lord Grey Hotel t/a The Lord Grey Ltd
Boston Borough Council,http://statistics.data.gov.uk/id/local-authority/32UB,Communities,Bed and Breakfast Accommodation (Homelessness Service),25/07/2023,30006957,840.00 ,The Lord Grey Hotel t/a The Lord Grey Ltd
Boston Borough Council,http://statistics.data.gov.uk/id/local-authority/32UB,Communities,Other Miscellaneous Expenses,25/07/2023,30006786,789.14 ,thebigword
Boston Borough Council,http://statistics.data.gov.uk/id/local-authority/32UB,Credit Control,Other Miscellaneous Expenses,25/07/2023,30006792,"1,179.47 ",Pay360 LTD
Boston Borough Council,http://statistics.data.gov.uk/id/local-authority/32UB,Credit Control,Other Miscellaneous Expenses,25/07/2023,30006793,510.66 ,Pay360 LTD
Boston Borough Council,http://statistics.data.gov.uk/id/local-authority/32UB,"Democratic, Civic & Electoral Services",Other Miscellaneous Expenses,25/07/2023,30006897,385.00 ,Central Bank St Botolphs Church
Boston Borough Council,http://statistics.data.gov.uk/id/local-authority/32UB,Economic Development,Professional and Contractors Fees,25/07/2023,30006612,"2,093.80 ",Executive Consultancy Services LTD
Boston Borough Council,http://statistics.data.gov.uk/id/local-authority/32UB,Economic Development,Professional Fees,25/07/2023,30006816,"1,105.00 ",Arcadis
Boston Borough Council,http://statistics.data.gov.uk/id/local-authority/32UB,Environmental Health,Other Private Contractors,25/07/2023,30006937,"4,864.00 ",Eastern Inshore Fisheries and Conservation Auth
Boston Borough Council,http://statistics.data.gov.uk/id/local-authority/32UB,Finance,Professional and Contractors Fees,25/07/2023,30006492,"10,040.00 ",Mazars LLP
Boston Borough Council,http://statistics.data.gov.uk/id/local-authority/32UB,Finance,Professional and Contractors Fees,25/07/2023,30006683,297.05 ,Data Shredders LTD
Boston Borough Council,http://statistics.data.gov.uk/id/local-authority/32UB,Heritage,Internet Broadband Payments,25/07/2023,30006603,112.26 ,Multidata LTD
Boston Borough Council,http://statistics.data.gov.uk/id/local-authority/32UB,Leisure,Furniture and Equipment,25/07/2023,30006775,271.20 ,JP Lennard LTD
Boston Borough Council,http://statistics.data.gov.uk/id/local-authority/32UB,Leisure,Internet Broadband Payments,25/07/2023,30006603,368.00 ,Multidata LTD
Boston Borough Council,http://statistics.data.gov.uk/id/local-authority/32UB,Leisure,Materials and Consumables,25/07/2023,30006531,"2,880.00 ",Grange Europe LTD
Boston Borough Council,http://statistics.data.gov.uk/id/local-authority/32UB,Leisure,Materials and Consumables,25/07/2023,30006680,235.28 ,Univar Solutions BV
Boston Borough Council,http://statistics.data.gov.uk/id/local-authority/32UB,Operations,Furniture and Equipment,25/07/2023,30006564,281.67 ,Portable offices (Hire) LTD
Boston Borough Council,http://statistics.data.gov.uk/id/local-authority/32UB,Operations,Maintenance,25/07/2023,30006756,"25,928.93 ",Specialist Fleet Services LTD
Boston Borough Council,http://statistics.data.gov.uk/id/local-authority/32UB,Operations,Other Miscellaneous Expenses,25/07/2023,30006943,380.00 ,SG Services (Boston) LTD
Boston Borough Council,http://statistics.data.gov.uk/id/local-authority/32UB,Operations,Other Private Contractors,25/07/2023,30006940,240.00 ,SG Services (Boston) LTD
Boston Borough Council,http://statistics.data.gov.uk/id/local-authority/32UB,Operations,Other Private Contractors,25/07/2023,30006941,240.00 ,SG Services (Boston) LTD
Boston Borough Council,http://statistics.data.gov.uk/id/local-authority/32UB,Planning,Professional and Contractors Fees,25/07/2023,30006950,"1,062.50 ",DPA Planning Ltd
Boston Borough Council,http://statistics.data.gov.uk/id/local-authority/32UB,Property Services,Buildings Maintenance - Programmed,25/07/2023,30006537,"2,060.60 ",Dantherm LTD
Boston Borough Council,http://statistics.data.gov.uk/id/local-authority/32UB,Property Services,Buildings Maintenance - Programmed,25/07/2023,30006767,435.30 ,Periam and Williamson Ltd
Boston Borough Council,http://statistics.data.gov.uk/id/local-authority/32UB,Property Services,Buildings Maintenance - Programmed,25/07/2023,30006776,445.00 ,Plastica Ltd
Boston Borough Council,http://statistics.data.gov.uk/id/local-authority/32UB,Property Services,Other Private Contractors,25/07/2023,30006671,"1,291.44 ",Kings Armoured Security Services LTD
Boston Borough Council,http://statistics.data.gov.uk/id/local-authority/32UB,Property Services,Professional and Contractors Fees,25/07/2023,30006717,453.83 ,Chipside LTD
Boston Borough Council,http://statistics.data.gov.uk/id/local-authority/32UB,Strategic Economic Development Projects,Professional and Contractors Fees,25/07/2023,30006796,"1,534.00 ",Marrons Planning
Boston Borough Council,http://statistics.data.gov.uk/id/local-authority/32UB,Strategic Economic Development Projects,Professional and Contractors Fees,25/07/2023,30006963,641.20 ,Freeths LLP
Boston Borough Council,http://statistics.data.gov.uk/id/local-authority/32UB,Strategic Economic Development Projects,Professional and Contractors Fees,25/07/2023,30006964,"2,610.00 ",Park Avenue Recruitment
Boston Borough Council,http://statistics.data.gov.uk/id/local-authority/32UB,Strategic Economic Development Projects,Professional Fees,25/07/2023,30006964,"2,349.00 ",Park Avenue Recruitment
Boston Borough Council,http://statistics.data.gov.uk/id/local-authority/32UB,Strategic Growth & Development,Grants and Contributions to Outside Bodies - No Service Received,25/07/2023,30006947,"3,500.00 ",Boston Community Transport Ltd
Boston Borough Council,http://statistics.data.gov.uk/id/local-authority/32UB,Credit Control,Other Miscellaneous Expenses,26/07/2023,30007048,"4,222.96 ",Pay360 LTD
Boston Borough Council,http://statistics.data.gov.uk/id/local-authority/32UB,Information Technology,Telephone and Mobiles,26/07/2023,30007047,"3,083.22 ",Kerv
Boston Borough Council,http://statistics.data.gov.uk/id/local-authority/32UB,Operations,Materials and Consumables,26/07/2023,30006979,"4,548.20 ",A and C Weber UK LTD
Boston Borough Council,http://statistics.data.gov.uk/id/local-authority/32UB,BTAC,Performers and Entertainers Fees,27/07/2023,30006996,400.00 ,"""Personal Information Redacted"""
Boston Borough Council,http://statistics.data.gov.uk/id/local-authority/32UB,BTAC,Performers and Entertainers Fees,27/07/2023,30006997,290.00 ,"""Personal Information Redacted"""
Boston Borough Council,http://statistics.data.gov.uk/id/local-authority/32UB,BTAC,Performers and Entertainers Fees,27/07/2023,30006999,290.00 ,"""Personal Information Redacted"""
Boston Borough Council,http://statistics.data.gov.uk/id/local-authority/32UB,Business Transformation,Postages,27/07/2023,30006907,457.64 ,Royal Mail
Boston Borough Council,http://statistics.data.gov.uk/id/local-authority/32UB,Communities,"Purchase of Plant, Machinery and Equipment",27/07/2023,30006637,"1,248.45 ",Videcom Security LTD
Boston Borough Council,http://statistics.data.gov.uk/id/local-authority/32UB,"Democratic, Civic & Electoral Services",Other Miscellaneous Expenses,27/07/2023,30006910,375.00 ,Dunmore's Catering
Boston Borough Council,http://statistics.data.gov.uk/id/local-authority/32UB,"Democratic, Civic & Electoral Services",Professional and Contractors Fees,27/07/2023,30006706,210.00 ,Chase Services Group
Boston Borough Council,http://statistics.data.gov.uk/id/local-authority/32UB,Economic Development,Professional Fees,27/07/2023,30006780,"6,090.00 ",East Midlands Railway EMR
Boston Borough Council,http://statistics.data.gov.uk/id/local-authority/32UB,Environmental Health,Other Miscellaneous Expenses,27/07/2023,30006634,"1,512.00 ",Bureau Veritas UK LTD
Boston Borough Council,http://statistics.data.gov.uk/id/local-authority/32UB,Information Technology,Telephone and Mobiles,27/07/2023,30006949,"1,601.86 ",Vodafone
Boston Borough Council,http://statistics.data.gov.uk/id/local-authority/32UB,Information Technology,Telephone and Mobiles,27/07/2023,30007050,233.37 ,British Telecommunications Plc
Boston Borough Council,http://statistics.data.gov.uk/id/local-authority/32UB,Leisure,Clothing Uniforms And Laundry,27/07/2023,30006771,424.00 ,Corporate Leisure
Boston Borough Council,http://statistics.data.gov.uk/id/local-authority/32UB,Leisure,Equipment Lease Payments (More than 12 months),27/07/2023,30006664,422.50 ,NVCS LTD
Boston Borough Council,http://statistics.data.gov.uk/id/local-authority/32UB,Leisure,Performers and Entertainers Fees,27/07/2023,30006998,290.00 ,"""Personal Information Redacted"""
Boston Borough Council,http://statistics.data.gov.uk/id/local-authority/32UB,Leisure,Staff Training Expenses (Non-Payroll),27/07/2023,30006847,250.00 ,HSQE Ltd
Boston Borough Council,http://statistics.data.gov.uk/id/local-authority/32UB,Operations,Agency Staff,27/07/2023,30006872,"6,241.91 ",Comensura LTD
Boston Borough Council,http://statistics.data.gov.uk/id/local-authority/32UB,Operations,Other Private Contractors,27/07/2023,30006944,240.00 ,SG Services (Boston) LTD
Boston Borough Council,http://statistics.data.gov.uk/id/local-authority/32UB,Operations,Other Private Contractors,27/07/2023,30006945,240.00 ,SG Services (Boston) LTD
Boston Borough Council,http://statistics.data.gov.uk/id/local-authority/32UB,Operations,Other Private Contractors,27/07/2023,30006946,240.00 ,SG Services (Boston) LTD
Boston Borough Council,http://statistics.data.gov.uk/id/local-authority/32UB,Property Services,Agency Staff,27/07/2023,30006707,"1,068.90 ",Chase Services Group
Boston Borough Council,http://statistics.data.gov.uk/id/local-authority/32UB,Property Services,Agency Staff,27/07/2023,30006710,"8,315.98 ",Chase Services Group
Boston Borough Council,http://statistics.data.gov.uk/id/local-authority/32UB,Property Services,Buildings Maintenance - Programmed,27/07/2023,30006923,750.00 ,Skirbeck St Nicholas PCC
